fUST/lending_fUST_20240421
["ID","MTS","AMOUNT","RATE_DAILY","PERIOD"]
[323106181,1713667842886,-285.22719,0.00021917,2]
[323106182,1713667842895,-285.22719,0.00021917,2]
[323106183,1713667842904,-285.22719,0.00021917,2]
[323106184,1713667842913,-285.22719,0.00021917,2]
[323106186,1713667842922,-285.22719,0.00021917,2]
[323106188,1713667842930,-527.9259086,0.00021917,2]
[323106190,1713667842940,-285.22719,0.00021917,2]
[323106192,1713667842949,-285.22719,0.00021917,2]
[323106194,1713667842958,-500.0,0.00021917,2]
[323106197,1713667842968,-500.0,0.00021917,2]
[323106199,1713667842976,-505.95654324,0.00021917,2]
[323106200,1713667842985,-1005.15726249,0.00021917,2]
[323106201,1713667842993,-500.0,0.00021917,2]
[323106202,1713667843002,-8612.8,0.00021917,2]
[323106203,1713667843011,-500.0,0.00021917,2]
[323106204,1713667843020,-500.0,0.00021917,2]
[323106205,1713667843029,-507.49119836,0.00021917,2]
[323106206,1713667843038,-500.62784997,0.00021917,2]
[323106207,1713667843047,-500.96142743,0.00021917,2]
[323106208,1713667843056,-500.0,0.00021917,2]
[323106209,1713667843065,-500.68949629,0.00021917,2]
[323106210,1713667843074,-509.28914217,0.00021917,2]
[323106211,1713667843082,-505.56398096,0.00021917,2]
[323106212,1713667843091,-503.34890146,0.00021917,2]
[323106213,1713667843099,-500.0,0.00021917,2]
[323106214,1713667843108,-507.90823416,0.00021917,2]
[323106215,1713667843117,-503.80258503,0.00021917,2]
[323106216,1713667843126,-620.64,0.00021917,2]
[323106217,1713667843134,-504.23048148,0.00021917,2]
[323106218,1713667843143,-500.0,0.00021917,2]
[323106219,1713667843151,-1060.09,0.00021917,2]
[323106220,1713667843160,-500.0,0.00021917,2]
[323106221,1713667843169,-525.26339244,0.00021917,2]
[323106223,1713667843178,-500.0,0.00021917,2]
[323106224,1713667843187,-577.93708886,0.00021917,2]
[323106226,1713667843196,-500.0,0.00021917,2]
[323106227,1713667843205,-352.918005,0.00021917,2]
[323106229,1713667843214,-352.918005,0.00021917,2]
[323106231,1713667843223,-352.918005,0.00021917,2]
[323106233,1713667843232,-352.918005,0.00021917,2]
[323106235,1713667843241,-500.0,0.00021917,2]
[323106237,1713667843250,-352.918005,0.00021917,2]
[323106238,1713667843259,-504.49760136,0.00021917,2]
[323106240,1713667843269,-352.918005,0.00021917,2]
[323106242,1713667843278,-516.85908464,0.00021917,2]
[323106243,1713667843287,-508.10133103,0.00021917,2]
[323106245,1713667843296,-352.918005,0.00021917,2]
[323106247,1713667843305,-352.918005,0.00021917,2]
[323106249,1713667843314,-352.918005,0.00021917,2]
[323106251,1713667843323,-352.918005,0.00021917,2]
[323106252,1713667843332,-505.5477228,0.00021917,2]
[323106253,1713667843341,-352.918005,0.00021917,2]
[323106254,1713667843350,-352.918005,0.00021917,2]
[323106256,1713667843360,-352.918005,0.00021917,2]
[323106258,1713667843369,-352.918005,0.00021917,2]
[323106269,1713667843457,-352.918005,0.00021917,2]
[323106271,1713667843467,-352.918005,0.00021917,2]
[323106273,1713667843477,-352.918005,0.00021917,2]
[323106275,1713667843487,-7111.99,0.00021917,2]
[323106277,1713667843497,-352.918005,0.00021917,2]
[323106279,1713667843506,-7111.99,0.00021917,2]
[323106281,1713667843516,-3500.72748952,0.00021917,2]
[323106299,1713667843678,-2169.05168259,0.00021917,2]
[323106518,1713667949562,200.69565186,0.00019817,2]
[323106522,1713668250685,150.0,0.00019817,2]
[323106523,1713668383223,24900.0,0.00020915,2]
[323106524,1713668430267,9693.04520904,0.00021,2]
[323106525,1713668527077,196.7086001,0.00020914,2]
[323106526,1713668551964,150.0,0.00019817,2]
[323106527,1713668622924,613.6755699,0.00020785,2]
[323106528,1713668742273,386.2879882,0.00020707,2]
[323106529,1713668853304,150.0,0.000189,2]
[323106530,1713668886926,2298.6676292,0.00020707,2]
[323106588,1713669032593,-469.43131527,0.00021373,2]
[323106589,1713669032603,-1877.41559284,0.00021373,2]
[323106590,1713669032613,-1201.72825929,0.00021373,2]
[323106591,1713669032622,-526.14121076,0.00021374,2]
[323106592,1713669032632,-1071.77042208,0.00021374,2]
[323106593,1713669032643,-239.4562672,0.00021374,2]
[323106594,1713669032653,-300.0,0.00021396,2]
[323106595,1713669032662,-300.0,0.00021396,2]
[323106596,1713669032673,-656.05296816,0.00021397,2]
[323106597,1713669032682,-620.0126313,0.00021402,2]
[323106598,1713669032692,-280.15830527,0.00021912,2]
[323106599,1713669032701,-541.34449639,0.00021912,2]
[323106600,1713669032711,-197.54540124,0.00021912,2]
[323106601,1713669032724,-3354.91138848,0.00021912,2]
[323106602,1713669032734,-155.35130749,0.00021914,2]
[323106603,1713669032743,-155.009809,0.00021914,2]
[323106604,1713669032754,-410.02740672,0.00021914,2]
[323106605,1713669032763,-55537.51856329,0.00021914,2]
[323106617,1713669038592,-16996.1081227,0.00021914,2]
[323106618,1713669038603,-290.85598798,0.00021915,2]
[323106619,1713669038613,-58205.02523361,0.00021915,2]
[323106620,1713669038622,-4000.0,0.00021916,2]
[323106621,1713669038632,-4000.0,0.00021916,2]
[323106622,1713669038641,-4000.0,0.00021916,2]
[323106623,1713669038650,-4000.0,0.00021916,2]
[323106624,1713669038659,-4000.0,0.00021916,2]
[323106625,1713669038669,-4000.0,0.00021916,2]
[323106626,1713669038678,-2535.03710403,0.00021916,2]
[323106627,1713669038687,-501.3447311,0.00021917,2]
[323106628,1713669038696,-500.0,0.00021917,2]
[323106629,1713669038705,-500.0,0.00021917,2]
[323106630,1713669038714,-500.0,0.00021917,2]
[323106631,1713669038724,-500.0,0.00021917,2]
[323106632,1713669038734,-500.0,0.00021917,2]
[323106633,1713669038743,-496.65029045,0.00021917,2]
[323106634,1713669038752,-515.02762525,0.00021917,2]
[323106635,1713669038765,-500.0,0.00021917,2]
[323106636,1713669038774,-500.0,0.00021917,2]
[323106637,1713669038783,-500.0,0.00021917,2]
[323106638,1713669038792,-500.0,0.00021917,2]
[323106639,1713669038801,-500.0,0.00021917,2]
[323106640,1713669038810,-503.63887754,0.00021917,2]
[323106641,1713669038819,-501.28946218,0.00021917,2]
[323106642,1713669038828,-500.0,0.00021917,2]
[323106643,1713669038837,-506.76271407,0.00021917,2]
[323106644,1713669038846,-500.0,0.00021917,2]
[323106645,1713669038855,-500.0,0.00021917,2]
[323106646,1713669038865,-500.0,0.00021917,2]
[323106647,1713669038873,-500.0,0.00021917,2]
[323106648,1713669038882,-500.0,0.00021917,2]
[323106649,1713669038892,-500.0,0.00021917,2]
[323106650,1713669038901,-500.0,0.00021917,2]
[323106651,1713669038910,-500.0,0.00021917,2]
[323106652,1713669038919,-542.27419734,0.00021917,2]
[323106653,1713669038929,-623.42691672,0.00021917,2]
[323106654,1713669038937,-500.0,0.00021917,2]
[323106655,1713669038946,-503.92363974,0.00021917,2]
[323106656,1713669038957,-500.0,0.00021917,2]
[323106657,1713669038968,-500.0,0.00021917,2]
[323106658,1713669038981,-500.0,0.00021917,2]
[323106659,1713669038990,-449.42366991,0.00021917,2]
[323106660,1713669038999,-504.51282419,0.00021917,2]
[323106661,1713669039008,-505.99335438,0.00021917,2]
[323106662,1713669039017,-502.27345387,0.00021917,2]
[323106663,1713669039027,-500.0,0.00021917,2]
[323106664,1713669039036,-500.0,0.00021917,2]
[323106665,1713669039045,-502.26605598,0.00021917,2]
[323106666,1713669039054,-500.0,0.00021917,2]
[323106667,1713669039064,-519.06561333,0.00021917,2]
[323106668,1713669039073,-500.0,0.00021917,2]
[323106669,1713669039082,-500.0,0.00021917,2]
[323106670,1713669039091,-500.0,0.00021917,2]
[323106671,1713669039100,-500.0,0.00021917,2]
[323106672,1713669039109,-505.67309386,0.00021917,2]
[323106673,1713669039118,-500.0,0.00021917,2]
[323106674,1713669039129,-501.33070458,0.00021917,2]
[323106675,1713669039139,-500.0,0.00021917,2]
[323106676,1713669039154,-500.0,0.00021917,2]
[323106677,1713669039163,-500.0,0.00021917,2]
[323106678,1713669039172,-282.05131261,0.00021917,2]
[323106679,1713669039181,-501.58329463,0.00021917,2]
[323106680,1713669039190,-500.0,0.00021917,2]
[323106681,1713669039198,-581.69196506,0.00021917,2]
[323106682,1713669039207,-420.27810903,0.00021917,2]
[323106683,1713669039216,-542.2,0.00021917,2]
[323106684,1713669039229,-500.85200865,0.00021917,2]
[323106685,1713669039239,-500.0,0.00021917,2]
[323106686,1713669039249,-502.51622234,0.00021917,2]
[323106687,1713669039258,-500.0,0.00021917,2]
[323106688,1713669039267,-500.0,0.00021917,2]
[323106689,1713669039276,-502.12639639,0.00021917,2]
[323106690,1713669039286,-319.458457,0.00021917,2]
[323106691,1713669039295,-319.458457,0.00021917,2]
[323106692,1713669039304,-319.458457,0.00021917,2]
[323106693,1713669039313,-500.0,0.00021917,2]
[323106694,1713669039322,-319.458457,0.00021917,2]
[323106695,1713669039331,-319.458457,0.00021917,2]
[323106696,1713669039340,-500.0,0.00021917,2]
[323106697,1713669039348,-319.458457,0.00021917,2]
[323106698,1713669039358,-319.458457,0.00021917,2]
[323106699,1713669039369,-319.458457,0.00021917,2]
[323106700,1713669039377,-319.458457,0.00021917,2]
[323106701,1713669039386,-319.458457,0.00021917,2]
[323106702,1713669039396,-202.67113236,0.00021917,2]
[323106703,1713669039405,-500.0,0.00021917,2]
[323106704,1713669039414,-500.0,0.00021917,2]
[323106705,1713669039424,-500.0,0.00021917,2]
[323106706,1713669039433,-1663.13,0.00021917,2]
[323106707,1713669039442,-500.0,0.00021917,2]
[323106708,1713669039451,-505.17159039,0.00021917,2]
[323106709,1713669039460,-500.0,0.00021917,2]
[323106710,1713669039469,-502.78488687,0.00021917,2]
[323106711,1713669039483,-500.0,0.00021917,2]
[323106712,1713669039492,-212.525031,0.00021917,2]
[323106713,1713669039501,-500.62222677,0.00021917,2]
[323106714,1713669039510,-500.0,0.00021917,2]
[323106715,1713669039519,-503.57969835,0.00021917,2]
[323106716,1713669039529,-500.0,0.00021917,2]
[323106717,1713669039539,-500.38493984,0.00021917,2]
[323106718,1713669039549,-366.32830987,0.00021917,2]
[323106719,1713669039559,-500.0,0.00021917,2]
[323106720,1713669039569,-605.34244902,0.00021917,2]
[323106721,1713669039578,-500.0,0.00021917,2]
[323106722,1713669039588,-500.0,0.00021917,2]
[323106723,1713669039598,-500.0,0.00021917,2]
[323106724,1713669039608,-387.10172038,0.00021917,2]
[323106725,1713669039619,-521.96962028,0.00021917,2]
[323106726,1713669039628,-500.0,0.00021917,2]
[323106727,1713669039637,-500.53621885,0.00021917,2]
[323106728,1713669039647,-504.62172337,0.00021917,2]
[323106729,1713669039658,-500.0,0.00021917,2]
[323106730,1713669039668,-502.16336368,0.00021917,2]
[323106731,1713669039677,-505.74617436,0.00021917,2]
[323106732,1713669039687,-500.0,0.00021917,2]
[323106733,1713669039697,-503.3669048,0.00021917,2]
[323106734,1713669039707,-519.82434357,0.00021917,2]
[323106735,1713669039716,-151.0,0.00021917,2]
[323106736,1713669039729,-151.0,0.00021917,2]
[323106737,1713669039738,-151.0,0.00021917,2]
[323106738,1713669039747,-151.0,0.00021917,2]
[323106739,1713669039757,-151.0,0.00021917,2]
[323106740,1713669039767,-151.0,0.00021917,2]
[323106741,1713669039776,-507.76544613,0.00021917,2]
[323106742,1713669039786,-151.0,0.00021917,2]
[323106743,1713669039795,-209.713087,0.00021917,2]
[323106744,1713669039803,-508.09085633,0.00021917,2]
[323106745,1713669039812,-500.0,0.00021917,2]
[323106746,1713669039821,-500.0,0.00021917,2]
[323106747,1713669039831,-500.0,0.00021917,2]
[323106748,1713669039841,-500.0,0.00021917,2]
[323106749,1713669039851,-520.08365609,0.00021917,2]
[323106750,1713669039860,-502.94306329,0.00021917,2]
[323106751,1713669039869,-500.0,0.00021917,2]
[323106752,1713669039877,-500.0,0.00021917,2]
[323106753,1713669039887,-500.0,0.00021917,2]
[323106754,1713669039896,-506.67405108,0.00021917,2]
[323106755,1713669039905,-505.80892022,0.00021917,2]
[323106756,1713669039915,-500.0,0.00021917,2]
[323106757,1713669039924,-500.0,0.00021917,2]
[323106758,1713669039934,-500.0,0.00021917,2]
[323106759,1713669039944,-500.0,0.00021917,2]
[323106761,1713669039954,-500.0,0.00021917,2]
[323106763,1713669039964,-500.0,0.00021917,2]
[323106765,1713669039976,-500.0,0.00021917,2]
[323106767,1713669039985,-500.0,0.00021917,2]
[323106769,1713669039994,-503.29172424,0.00021917,2]
[323106771,1713669040003,-500.0,0.00021917,2]
[323106773,1713669040012,-517.52195072,0.00021917,2]
[323106775,1713669040021,-503.69131818,0.00021917,2]
[323106778,1713669040030,-459.27032748,0.00021917,2]
[323106781,1713669040039,-500.0,0.00021917,2]
[323106783,1713669040048,-500.0,0.00021917,2]
[323106785,1713669040058,-500.0,0.00021917,2]
[323106787,1713669040067,-391.73583399,0.00021917,2]
[323106789,1713669040076,-501.92733579,0.00021917,2]
[323106791,1713669040085,-879.92,0.00021917,2]
[323106793,1713669040094,-500.0,0.00021917,2]
[323106795,1713669040103,-500.0,0.00021917,2]
[323106797,1713669040112,-500.0,0.00021917,2]
[323106799,1713669040121,-500.0,0.00021917,2]
[323106801,1713669040130,-503.94461939,0.00021917,2]
[323106803,1713669040139,-500.0,0.00021917,2]
[323106805,1713669040148,-500.0,0.00021917,2]
[323106807,1713669040160,-151.0,0.00021917,2]
[323106808,1713669040169,-151.0,0.00021917,2]
[323106810,1713669040178,-151.0,0.00021917,2]
[323106812,1713669040187,-151.0,0.00021917,2]
[323106814,1713669040197,-500.0,0.00021917,2]
[323106816,1713669040206,-151.0,0.00021917,2]
[323106818,1713669040215,-151.0,0.00021917,2]
[323106820,1713669040225,-500.0,0.00021917,2]
[323106822,1713669040235,-500.0,0.00021917,2]
[323106824,1713669040244,-500.0,0.00021917,2]
[323106826,1713669040253,-899.14,0.00021917,2]
[323106829,1713669040262,-500.0,0.00021917,2]
[323106832,1713669040271,-500.0,0.00021917,2]
[323106835,1713669040280,-500.0,0.00021917,2]
[323106838,1713669040289,-500.0,0.00021917,2]
[323106840,1713669040298,-500.0,0.00021917,2]
[323106843,1713669040307,-199.58755225,0.00021917,2]
[323106846,1713669040316,-500.0,0.00021917,2]
[323106848,1713669040326,-500.0,0.00021917,2]
[323106850,1713669040336,-500.0,0.00021917,2]
[323106851,1713669040345,-500.0,0.00021917,2]
[323106854,1713669040355,-500.0,0.00021917,2]
[323106856,1713669040364,-501.02751217,0.00021917,2]
[323106858,1713669040373,-500.0,0.00021917,2]
[323106859,1713669040382,-1288.07,0.00021917,2]
[323106865,1713669040391,-1288.07,0.00021917,2]
[323106866,1713669040483,-1288.07,0.00021917,2]
[323106867,1713669040492,-1288.07,0.00021917,2]
[323106868,1713669040501,-206.59556357,0.00021917,2]
[323106869,1713669040510,-1288.07,0.00021917,2]
[323106870,1713669040519,-1288.07,0.00021917,2]
[323106871,1713669040529,-1288.07,0.00021917,2]
[323106872,1713669040538,-1288.07,0.00021917,2]
[323106873,1713669040547,-1288.07,0.00021917,2]
[323106874,1713669040556,-1288.07,0.00021917,2]
[323106875,1713669040565,-1288.07,0.00021917,2]
[323106876,1713669040574,-1288.07,0.00021917,2]
[323106877,1713669040583,-1288.07,0.00021917,2]
[323106878,1713669040592,-1288.07,0.00021917,2]
[323106879,1713669040601,-1288.07,0.00021917,2]
[323106880,1713669040610,-503.83505764,0.00021917,2]
[323106881,1713669040619,-1288.07,0.00021917,2]
[323106882,1713669040628,-500.0,0.00021917,2]
[323106883,1713669040638,-500.0,0.00021917,2]
[323106884,1713669040647,-500.0,0.00021917,2]
[323106886,1713669040656,-500.0,0.00021917,2]
[323106887,1713669040665,-500.0,0.00021917,2]
[323106888,1713669040673,-500.0,0.00021917,2]
[323106889,1713669040682,-500.0,0.00021917,2]
[323106890,1713669040691,-500.0,0.00021917,2]
[323106891,1713669040700,-500.0,0.00021917,2]
[323106892,1713669040709,-500.0,0.00021917,2]
[323106894,1713669040719,-506.06553323,0.00021917,2]
[323106896,1713669040731,-409.5342768,0.00021917,2]
[323106897,1713669040739,-500.0,0.00021917,2]
[323106898,1713669040748,-500.0,0.00021917,2]
[323106899,1713669040757,-504.8838219,0.00021917,2]
[323106900,1713669040766,-502.51729193,0.00021917,2]
[323106902,1713669040775,-530.98,0.00021917,2]
[323106904,1713669040784,-151.0,0.00021917,2]
[323106906,1713669040793,-151.0,0.00021917,2]
[323106908,1713669040802,-151.0,0.00021917,2]
[323106910,1713669040812,-151.0,0.00021917,2]
[323106912,1713669040821,-151.0,0.00021917,2]
[323106914,1713669040832,-151.0,0.00021917,2]
[323106916,1713669040841,-500.0,0.00021917,2]
[323106918,1713669040850,-151.0,0.00021917,2]
[323106920,1713669040859,-151.0,0.00021917,2]
[323106922,1713669040868,-151.0,0.00021917,2]
[323106924,1713669040878,-151.0,0.00021917,2]
[323106926,1713669040886,-500.0,0.00021917,2]
[323106928,1713669040895,-151.0,0.00021917,2]
[323106930,1713669040904,-151.0,0.00021917,2]
[323106932,1713669040912,-538.13601584,0.00021917,2]
[323106934,1713669040921,-527.5925423,0.00021917,2]
[323106936,1713669040930,-565.1072154,0.00021917,2]
[323106938,1713669040940,-489.43358401,0.00021917,2]
[323106940,1713669040949,-505.86358156,0.00021917,2]
[323106942,1713669040958,-500.0,0.00021917,2]
[323106944,1713669040967,-500.0,0.00021917,2]
[323106946,1713669040976,-500.0,0.00021917,2]
[323106948,1713669040984,-500.0,0.00021917,2]
[323106950,1713669040993,-500.0,0.00021917,2]
[323106952,1713669041002,-500.0,0.00021917,2]
[323106954,1713669041011,-500.0,0.00021917,2]
[323106956,1713669041020,-500.0,0.00021917,2]
[323106958,1713669041029,-500.0,0.00021917,2]
[323106960,1713669041037,-500.0,0.00021917,2]
[323106962,1713669041046,-500.0,0.00021917,2]
[323106964,1713669041055,-500.0,0.00021917,2]
[323106966,1713669041064,-500.0,0.00021917,2]
[323106968,1713669041073,-500.0,0.00021917,2]
[323106970,1713669041082,-500.0,0.00021917,2]
[323106972,1713669041091,-500.0,0.00021917,2]
[323106974,1713669041104,-500.0,0.00021917,2]
[323106976,1713669041112,-500.0,0.00021917,2]
[323106978,1713669041122,-500.0,0.00021917,2]
[323106980,1713669041131,-500.0,0.00021917,2]
[323106982,1713669041140,-541.14793866,0.00021917,2]
[323106984,1713669041150,-500.0,0.00021917,2]
[323106986,1713669041161,-504.75483394,0.00021917,2]
[323106988,1713669041170,-500.0,0.00021917,2]
[323106990,1713669041179,-500.0,0.00021917,2]
[323106992,1713669041188,-500.0,0.00021917,2]
[323106994,1713669041198,-500.0,0.00021917,2]
[323106996,1713669041207,-500.0,0.00021917,2]
[323106998,1713669041216,-508.91488848,0.00021917,2]
[323107000,1713669041228,-500.0,0.00021917,2]
[323107002,1713669041238,-500.0,0.00021917,2]
[323107004,1713669041247,-500.0,0.00021917,2]
[323107006,1713669041256,-535.61717741,0.00021917,2]
[323107008,1713669041265,-151.0,0.00021917,2]
[323107010,1713669041273,-500.0,0.00021917,2]
[323107012,1713669041282,-151.0,0.00021917,2]
[323107014,1713669041291,-500.0,0.00021917,2]
[323107016,1713669041300,-159.875079,0.00021917,2]
[323107018,1713669041309,-500.0,0.00021917,2]
[323107020,1713669041318,-500.0,0.00021917,2]
[323107022,1713669041328,-500.0,0.00021917,2]
[323107024,1713669041337,-500.0,0.00021917,2]
[323107026,1713669041346,-500.0,0.00021917,2]
[323107028,1713669041356,-500.0,0.00021917,2]
[323107030,1713669041367,-500.0,0.00021917,2]
[323107032,1713669041376,-587.09914745,0.00021917,2]
[323107034,1713669041386,-500.0,0.00021917,2]
[323107036,1713669041395,-501.56761405,0.00021917,2]
[323107039,1713669041404,-500.0,0.00021917,2]
[323107041,1713669041413,-501.72732864,0.00021917,2]
[323107042,1713669041422,-616.02270007,0.00021917,2]
[323107045,1713669041431,-1005.15726249,0.00021917,2]
[323107047,1713669041440,-509.1765878,0.00021917,2]
[323107049,1713669041449,-505.95654324,0.00021917,2]
[323107051,1713669041458,-503.49389116,0.00021917,2]
[323107052,1713669041468,-500.0,0.00021917,2]
[323107054,1713669041478,-500.96142743,0.00021917,2]
[323107056,1713669041487,-500.0,0.00021917,2]
[323107058,1713669041497,-500.0,0.00021917,2]
[323107060,1713669041506,-500.0,0.00021917,2]
[323107063,1713669041516,-869.55,0.00021917,2]
[323107064,1713669041526,-500.0,0.00021917,2]
[323107066,1713669041535,-500.0,0.00021917,2]
[323107069,1713669041544,-500.0,0.00021917,2]
[323107070,1713669041554,-500.0,0.00021917,2]
[323107072,1713669041563,-500.0,0.00021917,2]
[323107074,1713669041572,-500.0,0.00021917,2]
[323107076,1713669041581,-500.0,0.00021917,2]
[323107078,1713669041592,-500.0,0.00021917,2]
[323107080,1713669041601,-500.0,0.00021917,2]
[323107082,1713669041611,-500.0,0.00021917,2]
[323107084,1713669041620,-500.0,0.00021917,2]
[323107086,1713669041629,-500.0,0.00021917,2]
[323107088,1713669041638,-500.0,0.00021917,2]
[323107090,1713669041647,-505.56398096,0.00021917,2]
[323107092,1713669041656,-1003.17,0.00021917,2]
[323107094,1713669041666,-507.90823416,0.00021917,2]
[323107096,1713669041674,-602.17667516,0.00021917,2]
[323107098,1713669041683,-508.10133103,0.00021917,2]
[323107100,1713669041692,-500.0,0.00021917,2]
[323107102,1713669041701,-506.4130942,0.00021917,2]
[323107104,1713669041711,-1271.16,0.00021917,2]
[323107106,1713669041720,-500.62784997,0.00021917,2]
[323107108,1713669041732,-525.26339244,0.00021917,2]
[323107110,1713669041741,-603.77596975,0.00021917,2]
[323107112,1713669041750,-503.63579584,0.00021917,2]
[323107114,1713669041759,-577.93708886,0.00021917,2]
[323107116,1713669041769,-500.0,0.00021917,2]
[323107119,1713669041778,-837.44,0.00021917,2]
[323107120,1713669041787,-509.28914217,0.00021917,2]
[323107122,1713669041796,-500.0,0.00021917,2]
[323107124,1713669041805,-504.49760136,0.00021917,2]
[323107126,1713669041814,-503.34890146,0.00021917,2]
[323107128,1713669041822,-500.0,0.00021917,2]
[323107130,1713669041833,-500.0,0.00021917,2]
[323107132,1713669041842,-505.5477228,0.00021917,2]
[323107134,1713669041851,-500.0,0.00021917,2]
[323107137,1713669041862,-500.0,0.00021917,2]
[323107138,1713669041871,-500.0,0.00021917,2]
[323107140,1713669041880,-504.23048148,0.00021917,2]
[323107142,1713669041889,-500.0,0.00021917,2]
[323107144,1713669041898,-505.86824263,0.00021917,2]
[323107147,1713669041907,-501.76409476,0.00021917,2]
[323107149,1713669041917,-512.55452793,0.00021917,2]
[323107150,1713669041926,-500.0,0.00021917,2]
[323107153,1713669041935,-500.0,0.00021917,2]
[323107154,1713669041944,-529.27756945,0.00021917,2]
[323107157,1713669041954,-500.0,0.00021917,2]
[323107158,1713669041963,-500.0,0.00021917,2]
[323107160,1713669041971,-2111.6,0.00021917,2]
[323107162,1713669041982,-500.0,0.00021917,2]
[323107164,1713669041991,-211.949389,0.00021917,2]
[323107166,1713669042000,-211.949389,0.00021917,2]
[323107168,1713669042009,-211.949389,0.00021917,2]
[323107170,1713669042018,-211.949389,0.00021917,2]
[323107172,1713669042027,-211.949389,0.00021917,2]
[323107174,1713669042036,-211.949389,0.00021917,2]
[323107176,1713669042045,-500.0,0.00021917,2]
[323107178,1713669042054,-211.949389,0.00021917,2]
[323107180,1713669042063,-211.949389,0.00021917,2]
[323107182,1713669042072,-211.949389,0.00021917,2]
[323107184,1713669042081,-211.949389,0.00021917,2]
[323107186,1713669042090,-211.949389,0.00021917,2]
[323107188,1713669042099,-211.949389,0.00021917,2]
[323107191,1713669042108,-211.949389,0.00021917,2]
[323107192,1713669042117,-211.949389,0.00021917,2]
[323107194,1713669042126,-500.0,0.00021917,2]
[323107196,1713669042136,-541.63,0.00021917,2]
[323107198,1713669042146,-500.95630734,0.00021917,2]
[323107201,1713669042157,-500.0,0.00021917,2]
[323107203,1713669042167,-500.0,0.00021917,2]
[323107204,1713669042176,-500.0,0.00021917,2]
[323107207,1713669042186,-500.0,0.00021917,2]
[323107208,1713669042195,-500.0,0.00021917,2]
[323107210,1713669042204,-505.41552766,0.00021917,2]
[323107212,1713669042213,-235.361304,0.00021917,2]
[323107214,1713669042222,-500.0,0.00021917,2]
[323107217,1713669042233,-500.0,0.00021917,2]
[323107227,1713669042311,-500.0,0.00021917,2]
[323107229,1713669042330,-500.0,0.00021917,2]
[323107231,1713669042340,-507.03210194,0.00021917,2]
[323107233,1713669042349,-500.0,0.00021917,2]
[323107235,1713669042358,-500.0,0.00021917,2]
[323107237,1713669042367,-509.22632447,0.00021917,2]
[323107239,1713669042376,-621.82,0.00021917,2]
[323107241,1713669042385,-151.0,0.00021917,2]
[323107243,1713669042395,-152.063389,0.00021917,2]
[323107245,1713669042404,-151.0,0.00021917,2]
[323107248,1713669042416,-151.0,0.00021917,2]
[323107250,1713669042425,-151.0,0.00021917,2]
[323107252,1713669042434,-151.0,0.00021917,2]
[323107253,1713669042443,-158.330461,0.00021917,2]
[323107256,1713669042452,-2580.78,0.00021917,2]
[323107258,1713669042461,-2580.78,0.00021917,2]
[323107259,1713669042470,-2580.78,0.00021917,2]
[323107262,1713669042481,-2580.78,0.00021917,2]
[323107264,1713669042490,-2580.78,0.00021917,2]
[323107266,1713669042499,-2580.78,0.00021917,2]
[323107267,1713669042508,-2580.78,0.00021917,2]
[323107269,1713669042517,-2580.78,0.00021917,2]
[323107271,1713669042527,-2580.78,0.00021917,2]
[323107274,1713669042536,-2580.78,0.00021917,2]
[323107276,1713669042545,-2580.78,0.00021917,2]
[323107277,1713669042554,-2580.78,0.00021917,2]
[323107279,1713669042563,-2580.78,0.00021917,2]
[323107281,1713669042573,-171.94624928,0.00021917,2]